bitfinex-derivatives/quotes_SOLF0:USTF0_20251211
["timestamp","ask_amount","ask_price","bid_price","bid_amount"]
[1765492455672,26.7535935,137.22,137.18,3.34]
[1765492455873,4.67233182,137.22,137.18,3.34]
[1765492457078,1.26877643,137.23,137.18,3.34]
[1765492458174,23.17359264,137.23,137.18,3.34]
[1765492458675,23.17359264,137.23,137.17,6.61552364]
[1765492458874,4.67233182,137.19,137.17,0.05572364]
[1765492459184,4.67233182,137.21,137.17,0.05572364]
[1765492459385,4.67233182,137.21,137.17,3.13572364]
[1765492462177,4.67233182,137.22,137.17,3.13572364]
[1765492462779,29.73099264,137.23,137.17,3.13572364]
[1765492462984,1.26877643,137.23,137.17,3.13572364]
[1765492463490,1.26877643,137.23,137.19,3.08]
[1765492464885,2.97629056,137.2,137.18,3.08]
[1765492468791,2.97629056,137.2,137.17,3.13572364]
[1765492469190,2.97629056,137.18,137.17,0.05572364]
[1765492469988,6.558,137.22,137.17,3.13572364]
[1765492470187,2.97629056,137.2,137.17,3.13572364]
[1765492476594,2.97629056,137.2,137.18,3.08]
[1765492476987,1.26877643,137.23,137.18,3.08]
[1765492477293,2.97629056,137.21,137.18,3.08]
[1765492480590,2.97629056,137.21,137.18,9.6394]
[1765492480896,2.97629056,137.21,137.19,3.08]
[1765492481492,1.26877643,137.23,137.19,3.08]
[1765492481493,4.24506699,137.23,137.19,3.08]
[1765492481898,2.97629056,137.23,137.2,3.08]
[1765492482093,2.97629056,137.23,137.2,3.13300342]
[1765492483289,1.26861455,137.25,137.21,3.08]
[1765492483496,2.97629056,137.26,137.21,3.08]
[1765492484887,2.97629056,137.26,137.23,3.08]
[1765492485090,2.97629056,137.26,137.23,3.13458247]
[1765492485292,72.14053247,137.27,137.23,3.13458247]
[1765492485590,75.11682303,137.27,137.23,3.13458247]
[1765492486200,6.5557,137.26,137.23,3.13458247]
[1765492486399,2.97629056,137.25,137.23,3.13458247]
[1765492486602,9.53199056,137.26,137.23,3.13458247]
[1765492488201,9.53199056,137.26,137.23,0.05458247]
[1765492488202,2.97629056,137.24,137.23,0.05458247]
[1765492488700,2.97629056,137.24,137.23,3.32458247]
[1765492488901,2.97629056,137.26,137.23,3.32458247]
[1765492489493,2.97629056,137.26,137.24,3.27]
[1765492489689,2.97629056,137.26,137.23,0.05458247]
[1765492490100,2.97629056,137.26,137.23,3.32458247]
[1765492490694,2.97629056,137.24,137.23,3.32458247]
[1765492492597,2.97629056,137.26,137.23,3.32458247]
[1765492493105,2.97629056,137.26,137.23,9.88158247]
[1765492493602,2.97629056,137.26,137.24,6.5566]
[1765492493992,2.97629056,137.26,137.24,9.8266]
[1765492494798,2.97629056,137.26,137.24,6.5566]
[1765492496001,69.83000639,137.27,137.24,6.5566]
[1765492496313,69.83000639,137.27,137.25,6.5561]
[1765492496615,68.56162303,137.27,137.23,3.32458247]
[1765492496904,68.56162303,137.27,137.26,9.8257]
[1765492496905,3.56533247,137.27,137.26,9.8257]
[1765492499103,3.56533247,137.27,137.23,0.05458247]
[1765492499407,6.54162303,137.27,137.25,3.27]
[1765492499904,1.26812915,137.3,137.25,3.27]
[1765492499905,2.6,137.34,137.27,3.27]
[1765492500097,2.78,137.31,137.29,0.05122462]
[1765492500301,2.97629056,137.3,137.29,0.05122462]
[1765492500805,2.97629056,137.3,137.29,3.32122462]
[1765492501012,5.75629056,137.32,137.29,3.32122462]
[1765492502105,5.75629056,137.32,137.3,6.5537]
[1765492503002,2.97629056,137.34,137.31,9.8233]
[1765492503202,2.97629056,137.34,137.31,3.31630514]
[1765492503397,2.78,137.33,137.31,0.04630514]
[1765492503601,5.75629056,137.32,137.31,0.04630514]
[1765492503803,5.75629056,137.34,137.31,3.31630514]
[1765492504603,2.97629056,137.33,137.31,3.31630514]
[1765492504806,2.78,137.32,137.31,0.04630514]
[1765492507914,2.78,137.34,137.31,3.31630514]
[1765492508119,64.74,137.34,137.31,3.31630514]
[1765492508318,64.74,137.34,137.32,6.5527]
[1765492508607,64.74,137.35,137.33,3.27]
[1765492508812,64.74,137.35,137.32,3.27]
[1765492509110,2.78,137.35,137.32,3.27]
[1765492509316,5.75629056,137.35,137.32,3.27]
[1765492511314,2.97629056,137.33,137.31,3.31630514]
[1765492512308,5.75629056,137.33,137.31,0.04630514]
[1765492512712,5.75629056,137.33,137.31,3.31630514]
[1765492513114,2.97629056,137.33,137.31,3.31630514]
[1765492517117,2.78,137.32,137.31,0.04630514]
[1765492517320,2.78,137.32,137.25,3.27]
[1765492517620,2.78,137.32,137.2,6.78130582]
[1765492517621,2.97629056,137.26,137.2,3.27]
[1765492517822,64.93629056,137.26,137.2,3.27]
[1765492518018,64.93629056,137.26,137.24,3.11]
[1765492518422,64.98271696,137.26,137.24,3.1606414]
[1765492518624,2.79,137.25,137.17,3.11]
[1765492518825,5.75629056,137.2,137.15,3.16]
[1765492519021,2.97629056,137.18,137.15,3.16]
[1765492519321,2.97629056,137.18,137.15,9.7207]
[1765492519719,5.8044583,137.18,137.15,9.77366083]
[1765492519926,2.97629056,137.16,137.15,9.77366083]
[1765492520315,2.97629056,137.16,137.15,3.21296083]
[1765492520516,2.97629056,137.16,137.15,0.05296083]
[1765492520720,5.75629056,137.16,137.15,0.05296083]
[1765492521015,2.78,137.15,137.09,3.16]
[1765492521318,2.97629056,137.12,137.09,3.16]
[1765492521513,64.93629056,137.12,137.09,3.16]
[1765492521924,64.98983547,137.12,137.09,3.20796039]
[1765492522127,67.76983547,137.12,137.09,0.04796039]
[1765492522426,5.75629056,137.1,137.09,0.04796039]
[1765492522725,2.78,137.1,137.09,0.04796039]
[1765492526822,2.83354491,137.12,137.09,0.04796039]
[1765492527030,0.05354491,137.12,137.09,3.20796039]
[1765492528314,2.83354491,137.12,137.09,3.20796039]
[1765492529329,2.83354491,137.12,137.09,0.04796039]
[1765492529828,2.83354491,137.12,137.09,3.20796039]
[1765492531020,2.83354491,137.12,137.09,0.04796039]
[1765492534129,62.02,137.11,137.09,0.04796039]
[1765492534433,62.02,137.11,137.01,12.36185835]
[1765492534434,2.78,137.1,137.01,3.16]
[1765492535030,2.78,137.09,137.03,9.7265]
[1765492535220,2.78,137.09,137.04,3.16]
[1765492535427,0.0556599,137.08,137.05,3.21478218]
[1765492536223,2.8356599,137.08,137.05,0.05478218]
[1765492539341,2.78,137.06,137.0,3.16]
[1765492539637,64.82,137.05,137.0,3.16]
[1765492540339,0.05560753,137.04,137.01,3.2067996]
[1765492541043,2.78,137.03,137.01,0.0467996]
[1765492544631,2.78,137.03,136.94,3.16]
[1765492544632,2.78,137.01,136.94,3.16]
[1765492544937,2.78,137.01,136.89,102.2508]
[1765492544938,2.78,136.99,136.91,3.16]
[1765492545139,2.78,136.97,136.91,9.7322]
[1765492545736,0.05620827,136.95,136.93,0.04740449]
[1765492546246,0.05620827,136.95,136.93,3.20740449]
[1765492547044,2.83620827,136.95,136.93,0.04740449]
[1765492547249,2.83620827,136.95,136.9,3.16]
[1765492547638,2.83620827,136.95,136.87,6.574]
[1765492547846,2.78,136.95,136.87,3.16]
[1765492548247,0.04680144,136.92,136.9,3.21345455]
[1765492548547,62.06,136.91,136.9,3.21345455]
[1765492549251,0.04680144,136.92,136.9,3.21345455]
[1765492550061,0.04680144,136.92,136.9,9.98615455]
[1765492550651,62.08,136.98,136.92,9.9318]
[1765492550848,2.79,136.99,136.92,9.9318]
[1765492551156,62.08,136.98,136.92,9.9318]
[1765492551562,0.05462155,136.96,136.94,0.05085079]
[1765492552466,0.05462155,136.96,136.94,3.41085079]
[1765492560766,2.79,137.01,136.95,3.36]
[1765492560963,64.89,137.01,136.95,3.36]
[1765492561363,2.79,137.0,136.96,3.36]
[1765492561769,0.05256941,136.99,136.98,3.36]
[1765492562072,2.83878505,137.0,136.97,3.4067591]
[1765492562475,2.83878505,137.0,136.97,0.0467591]
[1765492563966,9.3587,136.99,136.97,0.0467591]
[1765492564977,2.79,136.99,136.97,0.0467591]
[1765492565572,0.04878505,137.0,136.97,3.4067591]
[1765492566370,0.04878505,137.0,136.99,3.36]
[1765492567576,102.1055,137.09,136.99,3.36]
[1765492567577,2.79,137.1,137.02,3.36]
[1765492567776,64.89,137.09,137.02,3.36]
[1765492568078,64.89,137.09,137.0,102.1676]
[1765492568079,64.89,137.09,137.05,3.36]
[1765492568374,2.84117243,137.08,137.06,0.04940354]
[1765492568965,0.05117243,137.08,137.06,0.04940354]
[1765492569165,0.05117243,137.08,137.06,3.40940354]
[1765492569575,0.05117243,137.08,137.07,3.36]
[1765492579780,56.74,137.12,137.07,3.36]
[1765492580680,0.05440372,137.11,137.08,3.25752223]
[1765492581478,2.83440372,137.11,137.08,0.04752223]
[1765492581679,2.78,137.1,137.02,3.21]
[1765492581989,2.78,137.07,137.02,3.21]
[1765492582287,2.78,137.06,137.02,3.21]
[1765492582484,2.78,137.06,137.02,9.777]
[1765492582676,0.05411657,137.05,137.03,3.26105474]
[1765492588894,3.03747566,137.05,137.03,3.26105474]
[1765492591092,3.03747566,137.05,137.03,9.82755474]
[1765492592496,0.05411657,137.05,137.04,3.21]
[1765492594300,0.05411657,137.05,137.04,9.7762]
[1765492594996,0.05411657,137.05,137.04,6.5662]
[1765492595203,0.05411657,137.05,137.04,9.7762]
[1765492597500,0.05411657,137.05,136.98,3.21]
[1765492597501,2.83411657,137.05,136.98,3.21]
[1765492597701,2.98335909,137.02,136.98,3.21]
[1765492598605,0.05583386,137.01,136.99,3.26572976]
[1765492598994,0.05583386,137.01,136.99,9.83422976]
[1765492599595,0.05583386,137.01,137.0,3.21]
[1765492599795,3.03919295,137.01,137.0,3.21]
[1765492600601,5.81919295,137.01,136.99,0.05572976]
[1765492600991,2.78,137.0,136.99,0.05572976]
[1765492601195,2.78,137.0,136.97,3.21]
[1765492601398,2.98335909,136.98,136.97,3.21]
[1765492601595,2.78,137.0,136.97,3.21]
[1765492601800,2.98335909,136.98,136.94,3.21]
[1765492601999,2.98335909,136.96,136.94,3.21]
[1765492602195,5.81535259,136.96,136.94,0.05149984]
[1765492602898,2.78,136.95,136.94,0.05149984]
[1765492603102,2.78,136.95,136.88,3.21]
[1765492603103,2.98335909,136.92,136.88,3.21]
[1765492604100,2.98335909,136.92,136.86,102.2721]
[1765492604101,0.0471321,136.91,136.9,3.21]
[1765492616517,2.78,136.95,136.93,9.6214]
[1765492617325,64.91,136.96,136.93,9.6214]
[1765492617518,64.96090165,136.96,136.93,9.67400976]
[1765492618628,2.79,136.95,136.93,9.67400976]
[1765492619127,2.79,136.95,136.93,3.10260976]
[1765492621331,0.05090165,136.96,136.93,3.10260976]
[1765492622026,0.05090165,136.96,136.94,3.05]
[1765492622833,21.92,137.04,136.93,6.62400976]
[1765492622834,72.53391351,137.03,136.95,3.05]
[1765492623231,72.53391351,137.03,136.96,3.05]
[1765492623627,2.79,137.03,136.96,3.05]
[1765492623836,0.05329396,137.01,137.0,3.05]
[1765492624133,0.05568224,137.02,137.0,3.05]
[1765492627649,2.84,137.11,137.0,3.05]
[1765492627940,6.26417772,137.09,137.03,0.53]
[1765492628328,6.26417772,137.09,137.03,6.5665]
[1765492628540,2.98417772,137.11,137.04,0.53]
[1765492628732,0.04648204,137.09,137.07,0.53]
[1765492635241,0.04648204,137.09,137.07,7.0947]
[1765492636543,0.04648204,137.09,137.08,0.53]
[1765492643453,6.21065976,137.09,137.07,7.0947]
[1765492643753,3.03065976,137.09,137.07,7.0947]
[1765492643952,3.18,137.08,137.06,0.05335515]
[1765492644161,3.18,137.06,137.0,0.53]
[1765492644452,2.98417772,137.02,137.0,0.53]
[1765492644653,2.98417772,137.04,137.02,0.53]
[1765492645053,3.03267051,137.04,137.02,0.58191881]
[1765492645854,3.03267051,137.04,137.02,7.14901881]
[1765492646056,3.03267051,137.04,137.03,0.53]
[1765492646356,3.03267051,137.04,137.02,7.14901881]
[1765492646748,0.04849279,137.04,137.02,7.14901881]
[1765492646949,0.04849279,137.04,137.02,0.58191881]
[1765492647154,7.89065873,137.04,137.02,0.05191881]
[1765492648861,14.45715873,137.04,137.02,0.05191881]
[1765492649060,7.89065873,137.04,137.02,0.05191881]
[1765492649663,3.18,137.03,136.99,0.53]
[1765492650548,3.18,137.03,137.0,0.05397847]
[1765492650747,3.18,137.03,137.0,0.58397847]
[1765492652165,3.22849279,137.04,137.01,0.53]
[1765492653063,3.22849279,137.04,137.02,0.53]
[1765492653064,0.04849279,137.04,137.02,0.53]
[1765492653848,0.04849279,137.04,137.02,7.0969]
[1765492654056,0.04849279,137.04,137.03,0.53]
[1765492655663,0.04849279,137.04,137.03,7.0967]
[1765492658452,3.18,137.09,137.05,0.53]
[1765492658961,3.18,137.09,137.06,7.0952]
[1765492659363,3.23502613,137.09,137.06,7.14867667]
[1765492659862,3.18,137.08,137.06,0.05347667]
[1765492660559,7.89719207,137.09,137.06,0.58347667]
[1765492661968,7.89719207,137.09,137.06,0.05347667]
[1765492661969,3.18,137.08,137.06,0.05347667]
[1765492664568,3.18,137.08,137.06,0.58347667]
[1765492665362,0.05502613,137.09,137.07,0.53]
[1765492666968,0.05502613,137.09,137.08,0.53]
[1765492669653,0.05502613,137.09,137.08,7.0943]
[1765492671360,7.84216594,137.13,137.1,0.53]
[1765492672071,3.18,137.13,137.1,0.53]
[1765492672261,3.23600703,137.13,137.1,0.57716009]
[1765492672569,3.23600703,137.13,137.1,7.14046009]
[1765492672762,3.23600703,137.13,137.11,0.53]
[1765492672763,0.05600703,137.13,137.11,0.53]
[1765492673169,4.66216594,137.19,137.12,0.53]
[1765492673570,8.03216594,137.19,137.12,0.53]
[1765492673768,3.37,137.18,137.15,0.53]
[1765492674065,3.41657757,137.18,137.15,0.57777428]
[1765492676163,3.41657757,137.18,137.15,7.13867428]
[1765492676567,0.04657757,137.18,137.15,0.57777428]
[1765492677471,3.37,137.21,137.17,0.53]
[1765492677673,3.37,137.23,137.17,0.53]
[1765492678566,0.05454905,137.21,137.19,0.58222958]
[1765492680570,3.42454905,137.21,137.19,0.05222958]
[1765492680780,3.42454905,137.21,137.09,102.1026]
[1765492680781,3.37,137.19,137.09,102.1026]
[1765492680976,3.37,137.16,137.1,0.53]
[1765492681378,8.03216594,137.15,137.09,0.53]
[1765492681671,8.03216594,137.15,137.11,0.05604958]
[1765492681672,3.41658568,137.13,137.11,0.05604958]
[1765492683978,3.41658568,137.13,137.11,6.61864958]
[1765492685077,3.41658568,137.13,137.11,0.05604958]
[1765492692891,0.04658568,137.13,137.11,0.58604958]
[1765492693285,0.04658568,137.13,137.11,7.14874958]
[1765492694592,3.37,137.16,137.13,6.5618]
[1765492695690,3.42571852,137.16,137.12,0.53]
[1765492696086,3.42571852,137.16,137.12,7.0923]
[1765492696392,3.42571852,137.16,137.12,6.5623]
[1765492697996,3.42571852,137.16,137.13,6.5618]
[1765492698896,3.42571852,137.16,137.11,7.14884958]
[1765492701294,4.66216594,137.15,137.11,0.05604958]
[1765492701500,3.32,137.14,137.11,0.05604958]
[1765492705195,9.8814,137.14,137.11,0.05604958]
[1765492705394,3.32,137.13,137.11,0.05604958]
[1765492705594,3.32,137.12,137.04,0.53]
[1765492705793,3.32,137.1,137.04,7.0962]
[1765492706107,3.32,137.08,137.02,0.58]
[1765492706301,3.32,137.08,137.02,7.1468]
[1765492706503,0.04976335,137.06,137.04,0.04908396]
[1765492706704,3.32,137.05,137.04,0.04908396]
[1765492706895,0.04976335,137.06,137.04,0.04908396]
[1765492707095,3.36976335,137.06,137.04,0.04908396]
[1765492707294,0.04976335,137.06,137.04,7.19528396]
[1765492707492,0.04976335,137.06,137.05,0.58]
[1765492709705,3.36976335,137.06,137.04,0.04908396]
[1765492709904,3.36976335,137.06,137.04,0.62908396]
[1765492710202,0.04976335,137.06,137.05,0.58]
[1765492710600,0.04976335,137.06,137.04,0.62908396]
[1765492710803,3.36976335,137.06,137.04,0.04908396]
[1765492713107,3.36976335,137.06,137.04,6.61518396]
[1765492714010,3.36976335,137.06,137.04,7.19518396]
[1765492714310,0.04976335,137.06,137.05,0.58]
[1765492719411,0.04976335,137.06,137.04,7.19518396]
[1765492720608,0.04976335,137.06,137.05,6.5657]
[1765492722711,3.36976335,137.06,137.04,0.04908396]
[1765492723217,0.04976335,137.06,137.04,7.19528396]
[1765492728015,0.04976335,137.06,137.05,7.1457]
[1765492728220,3.32,137.14,137.06,0.58]
[1765492728522,3.32,137.14,137.1,6.5633]
[1765492728719,3.32,137.14,137.1,7.1433]
[1765492729119,0.05396307,137.13,137.11,0.05465841]
[1765492730032,0.05396307,137.13,137.12,0.59]
[1765492730222,0.05396307,137.13,137.11,0.05465841]
[1765492730919,3.17396307,137.13,137.11,0.05465841]
[1765492732729,6.10047548,137.12,137.11,0.05465841]
[1765492735930,3.12,137.12,137.11,0.05465841]
[1765492740834,3.12,137.12,137.11,6.61745841]
[1765492741221,0.05396307,137.13,137.11,0.64465841]
[1765492741533,0.05396307,137.13,137.12,6.5624]
[1765492746638,3.17396307,137.13,137.12,6.5624]
[1765492747040,3.17396307,137.13,137.11,0.05465841]
[1765492747537,6.10047548,137.12,137.11,0.05465841]
[1765492748335,3.12,137.11,137.04,62.04]
[1765492748532,6.10047548,137.1,137.04,62.68]
[1765492748930,3.12,137.09,137.05,0.64]
[1765492749438,0.0486416,137.08,137.06,0.04655151]
[1765492749646,0.0486416,137.08,137.06,0.68655151]
[1765492750132,3.1686416,137.08,137.06,0.04655151]
[1765492750340,6.14911708,137.08,137.06,0.04655151]
[1765492750542,3.12,137.07,137.06,0.04655151]
[1765492751130,3.12,137.07,137.01,0.64]
[1765492751339,3.12,137.05,137.01,0.64]
[1765492751936,3.12,137.05,137.02,0.64]
[1765492752137,3.17099216,137.05,137.02,0.6868146]
[1765492753332,3.17099216,137.05,137.02,7.2538146]
[1765492754239,3.17099216,137.05,137.02,0.0468146]
[1765492754742,3.3,137.03,137.02,0.0468146]
[1765492762143,6.04047548,137.04,137.02,6.6136146]
[1765492762345,3.06,137.03,137.02,6.6136146]
[1765492764143,3.06,137.03,137.02,0.0468146]
[1765492769149,3.06,137.03,136.98,0.64]
[1765492769345,3.06,137.01,136.98,0.64]
[1765492770155,3.11151386,137.01,136.98,0.68996935]
[1765492774160,3.11151386,137.01,136.98,0.04996935]
[1765492774651,9.67921386,137.01,136.98,0.04996935]
[1765492774846,7.77580427,137.01,136.98,0.04996935]
[1765492775051,3.06,137.0,136.98,0.04996935]
[1765492778157,3.06,137.0,136.98,0.68996935]
[1765492781167,3.06,137.0,136.98,0.04996935]
[1765492785868,0.05151386,137.01,136.99,0.64]
[1765492786661,0.05151386,137.01,137.0,0.64]
[1765492787368,0.05151386,137.01,137.0,7.2081]
[1765492800173,3.07,137.06,137.03,0.64]
[1765492800376,3.07,137.04,137.0,0.64]
[1765492801183,3.124292,137.03,137.01,6.61973695]
[1765492801374,3.124292,137.03,137.01,0.05233695]
[1765492801576,3.124292,137.03,137.01,0.69233695]
[1765492801878,3.124292,137.03,137.02,6.5671]
[1765492803587,7.78858241,137.03,137.01,0.05233695]
[1765492803775,3.07,137.02,137.01,0.05233695]
[1765492804083,3.124292,137.03,137.01,0.69233695]
[1765492804984,3.124292,137.03,137.02,6.5671]
[1765492806585,0.054292,137.03,137.02,7.2071]
[1765492810682,3.07,137.06,137.05,6.5657]
[1765492813191,3.07,137.1,137.06,0.64]
[1765492814192,0.05282723,137.09,137.07,7.2047]
[1765492814499,0.05282723,137.09,137.07,0.6897105]
[1765492815000,9.24394636,137.16,137.1,0.59]
[1765492816098,0.04902445,137.14,137.12,7.20296654]
[1765492816495,0.04902445,137.14,137.13,0.59]
[1765492819806,3.24,137.17,137.14,7.1612]
[1765492821395,1.26912347,137.2,137.12,102.12906654]
[1765492821396,3.24,137.19,137.15,0.6]
[1765492821601,3.24,137.19,137.16,0.65450019]
[1765492822291,3.24,137.19,137.17,7.1597]
[1765492822790,3.24,137.21,137.18,7.1593]
[1765492822989,3.24,137.21,137.19,0.6]
[1765492823293,3.24,137.21,137.17,0.6]
[1765492823890,3.24,137.21,137.19,6.5588]
[1765492824199,3.24,137.23,137.19,0.6]
[1765492824401,3.24,137.23,137.2,0.65488075]
[1765492824703,3.24,137.23,137.21,6.5578]
[1765492828198,3.24,137.23,137.21,7.1578]
[1765492829595,3.24,137.26,137.23,0.6]
[1765492829795,4.66429041,137.3,137.23,0.65168144]
[1765492829997,3.24,137.28,137.25,6.5561]
[1765492830197,3.24,137.28,137.25,6.61179803]
[1765492830499,3.24,137.25,137.18,0.6]
[1765492830800,3.24,137.23,137.18,0.6]
[1765492830998,3.24,137.23,137.2,6.5584]
[1765492831305,3.24,137.21,137.17,0.6]
[1765492831495,3.29042107,137.2,137.18,0.65395847]
[1765492831695,3.29042107,137.2,137.18,0.05395847]
[1765492832498,3.29042107,137.2,137.18,6.61315847]
[1765492832698,3.24,137.19,137.18,6.61315847]
[1765492836603,6.21563905,137.19,137.18,0.05395847]
[1765492837306,3.24,137.19,137.18,0.05395847]
[1765492837500,6.21563905,137.19,137.18,0.05395847]
[1765492838603,3.24,137.18,137.08,0.65]
[1765492838904,3.24,137.11,137.07,0.65]
[1765492839507,0.05041008,137.1,137.08,0.0494447]
[1765492839904,0.05041008,137.1,137.08,6.6133447]
[1765492840205,3.24,137.09,137.02,3.35]
[1765492840405,3.24,137.03,137.0,3.35]
[1765492840613,3.24,137.03,136.99,6.5685]
[1765492840910,3.24,137.03,136.99,3.35]
[1765492841311,3.29441121,137.02,137.0,0.04778549]
[1765492841516,3.24,137.01,137.0,0.04778549]
[1765492849516,3.24,137.01,136.94,6.5707]
[1765492850308,3.25,136.98,136.96,0.0555188]
[1765492854118,3.25,136.98,136.91,6.5722]
[1765492854422,3.25,136.97,136.91,6.5722]
[1765492854823,3.25,136.96,136.91,6.5722]
[1765492855018,3.25,136.96,136.9,3.16]
[1765492855218,3.2976286,136.94,136.92,0.05257456]
[1765492857106,3.25,136.91,136.85,3.16]
[1765492857522,3.25,136.91,136.82,9.7365]
[1765492857723,3.25,136.9,136.82,9.7365]
[1765492857921,3.25,136.9,136.83,3.16]
[1765492858121,0.0527262,136.88,136.85,3.21159542]
[1765492859516,3.25,136.93,136.87,3.16]
[1765492859917,3.25,136.92,136.84,3.16]
[1765492860519,0.04890644,136.89,136.87,3.21332853]
[1765492861120,3.25,136.82,136.71,3.16]
[1765492861322,3.25,136.81,136.72,3.16]
[1765492861526,102.2938,136.84,136.72,3.16]
[1765492861527,62.1,136.83,136.74,3.16]
[1765492861815,3.25,136.84,136.74,3.16]
[1765492862228,0.05525977,136.8,136.78,3.20891318]
[1765492862722,3.30525977,136.8,136.78,0.04891318]
[1765492863221,0.05525977,136.8,136.78,0.04891318]
[1765492863416,0.05525977,136.8,136.78,3.20891318]
[1765492865225,3.30525977,136.8,136.78,0.04891318]
[1765492865425,3.25,136.78,136.69,3.16]
[1765492865726,3.25,136.78,136.71,3.16]
[1765492866428,3.29626003,136.76,136.73,0.0484417]
[1765492868230,3.29626003,136.76,136.68,62.08]
[1765492868527,3.29626003,136.76,136.66,211.4244]
[1765492868528,3.25,136.69,136.63,3.56533247]
[1765492868832,3.25,136.69,136.63,6.72533247]
[1765492869533,3.25,136.69,136.65,0.05348174]
[1765492869534,0.05133826,136.67,136.65,0.05348174]
[1765492870517,0.05133826,136.67,136.65,3.21348174]
[1765492871228,55.52,136.74,136.66,3.16]
[1765492871833,3.25,136.74,136.66,3.16]
[1765492872224,0.05558186,136.71,136.69,0.04697366]
[1765492873048,3.25,136.74,136.69,3.20697366]
[1765492873336,3.25,136.77,136.7,3.16]
[1765492873833,3.25,136.71,136.59,3.16]
[1765492874029,102.3872,136.72,136.59,3.16]
[1765492874030,3.25,136.67,136.63,0.92305042]
[1765492875231,3.25,136.67,136.64,0.04888093]
[1765492884140,3.32,136.64,136.54,6.5902]
[1765492884342,3.32,136.64,136.56,3.26]
[1765492885042,0.04605642,136.61,136.59,0.0463959]
[1765492887044,3.36605642,136.61,136.59,0.0463959]
[1765492887239,3.36605642,136.61,136.53,3.26]
[1765492887544,3.32,136.61,136.53,3.26]
[1765492888438,0.05287072,136.58,136.56,0.05207089]
[1765492888636,3.37287072,136.58,136.56,0.05207089]
[1765492893437,9.9088,136.57,136.56,0.05207089]
[1765492894246,3.32,136.57,136.56,0.05207089]
[1765492894857,3.37287072,136.58,136.56,0.05207089]
[1765492897950,3.32,136.57,136.56,0.05207089]
[1765492898353,3.32,136.57,136.5,3.26]
[1765492899355,3.37213346,136.55,136.52,0.0509687]
[1765492899946,9.9102,136.54,136.52,0.0509687]
[1765492900241,3.32,136.53,136.52,0.0509687]
[1765492900440,3.32,136.52,136.47,3.26]
[1765492901454,164.8002,136.54,136.48,0.05090111]
[1765492901455,3.37547226,136.51,136.48,0.05090111]
[1765492902049,9.96737226,136.51,136.48,0.05090111]
[1765492902651,9.9123,136.5,136.48,0.05090111]
[1765492902850,3.32,136.49,136.48,0.05090111]
[1765492904351,65.6,136.49,136.48,0.05090111]
[1765492904549,3.32,136.48,136.42,6.5956]
[1765492905159,3.32,136.48,136.42,9.8556]
[1765492905459,0.05094501,136.46,136.45,3.26]
[1765492905758,62.28,136.49,136.45,3.26]
[1765492906152,3.32,136.51,136.45,3.26]
[1765492906454,3.32,136.51,136.44,0.04978996]
[1765492906658,3.32,136.48,136.44,0.04978996]
[1765492906958,3.32,136.48,136.45,0.05023786]
[1765492907748,3.32,136.48,136.45,3.31023786]
[1765492907947,3.32,136.48,136.45,0.05023786]
[1765492909558,3.11,136.47,136.39,3.07]
[1765492910556,0.04971288,136.44,136.42,0.05222215]
[1765492911555,3.15971288,136.44,136.42,0.05222215]
[1765492912254,0.04971288,136.44,136.42,3.12222215]
[1765492913648,124.4115,136.55,136.42,3.12222215]
[1765492913649,3.11,136.51,136.44,105.6574]
[1765492914654,3.16204409,136.49,136.46,0.05028809]
[1765492915966,3.16204409,136.49,136.47,6.5932]
[1765492917057,0.05204409,136.49,136.48,3.07]
[1765492918163,62.32,136.52,136.49,3.07]
[1765492918364,62.32,136.52,136.5,3.07]
[1765492918562,3.11,136.55,136.5,3.07]
[1765492919267,3.16373984,136.54,136.52,6.591]
[1765492919468,0.05373984,136.54,136.52,9.661]
[1765492920462,0.05373984,136.54,136.52,6.591]